[Event "43rd Indian-chT 2023-24"]
[Site "Dharamsala"]
[Date "2024.04.01"]
[Round "5.5"]
[White "Shyaamnikhil P"]
[Black "Shreyash Singh"]
[Result "1-0"]
[ECO "B18"]
[WhiteElo "2405"]
[BlackElo "1807"]
[Annotator "TA"]
[PlyCount "53"]
[EventDate "2024.03.28"]
[EventType "team-tourn"]
[EventCountry "IND"]
[SourceTitle "playchess.com"]
[Source "ChessBase"]
[SourceQuality "1"]
[TimeControl "5400+30"]

{[%evp 11,53,0,2,0,4,-1,6,12,16,5,10,4,9,4,19,3,0,5,13,0,0,0,0,-30,33,15,15,20,56,62,312,296,316,322,318,317,1043,765,735,630,754,752,743,729]} 1. e4 {[%emt 0:00:04]} c6 {[%emt 0:00:04]} 2. d4 {[%emt 0:05:13]} d5 {[%emt 0:00:07]} 3. Nc3 {[%emt 0:00:03]} dxe4 {[%emt 0:00:06]} 4. Nxe4 {[%emt 0:00:02]} Nf6 {[%emt 0:00:08]} 5. Nc3 {[%emt 0:00:07]} Bf5 {[%emt 0:02:14]} 6. Nf3 {[%emt 0:00:39]} e6 {[%emt 0:01:04]} 7. Bd3 {[%emt 0:02:48]} Bxd3 {[%emt 0:02:22]} 8. Qxd3 {[%emt 0:00:06]} Bd6 {[%emt 0:01:15]} 9. O-O {[%emt 0:00:27] The position is equal.} O-O {[%emt 0:03:08]} 10. Bg5 {[%emt 0:04:32]} Nbd7 {[%emt 0:02:03]} 11. Rfe1 {[%emt 0:00:11]} Be7 {[%emt 0:13:36]} 12. Qe2 {[%emt 0:09:19]} Nd5 {[%emt 0:05:10]} 13. Bd2 {[%emt 0:00:23]} Nxc3 {[%emt 0:06:41]} 14. Bxc3 {[%emt 0:00:11]} Nf6 {[%emt 0:00:34]} 15. Rad1 {[%emt 0:01:06][%cal Ba1d1,Bd1d3,Bd3g3][%mdl 32]} Qb6 {[%emt 0:05:03]} 16. Ne5 {[%emt 0:02:20]} Rad8 {[%emt 0:05:17]} 17. Rd3 {[%emt 0:13:38]} c5 {[%emt 0:13:24]} ({Better is} 17... Nd5 $11 18. Qe4 Nxc3 19. bxc3 Qb2) 18. dxc5 $14 {[%emt 0:03:41]} Qxc5 {[%emt 0:03:55]} 19. Rg3 {[%emt 0:00:42]} g6 {[%emt 0:05:14]} 20. Rh3 {[%emt 0:05:56]} Nd5 $2 {[%emt 0:06:14] [#] Loses the game.} (20... Rd5 $14) 21. Qh5 $3 $18 {[%emt 0:01:19][%mdl 512]} Nf6 {[%emt 0:03:47]} 22. Qh6 {[%emt 0:00:18][%cal Oe5g4] Threatens to win with Ng4!} Rfe8 {[%emt 0:00:30]} 23. Ng4 {[%emt 0:00:38]} Qf5 {[%emt 0:00:27]} (23... Rd4) 24. Nxf6+ {[%emt 0:04:12] White is clearly winning.} Bxf6 {[%emt 0:00:18]} 25. Qxh7+ {[%emt 0:00:05]} Kf8 {[%emt 0:00:17]} 26. Rf3 {[%emt 0:00:27]} Bxc3 {[%emt 0:00:12]} 27. bxc3 {[%emt 0:00:13] Weighted Error Value: White=0.06 (flawless) /Black=0.35.  Loses game:     	---       	Black=1      Mistake:       	---       	Black=2      Inaccurate:     	White=1     	Black=1      OK:         	White=5     	Black=4      Best:        	---       	Black=2      Brilliant:      	White=1     	---} 1-0

[Event "43rd Indian-chT 2023-24"]
[Site "Dharamsala"]
[Date "2024.04.01"]
[Round "5.6"]
[White "Bharat Bansal"]
[Black "Vignesh N R"]
[Result "0-1"]
[ECO "B90"]
[WhiteElo "1761"]
[BlackElo "2525"]
[Annotator "RC"]
[PlyCount "114"]
[EventDate "2024.03.28"]
[EventType "team-tourn"]
[EventCountry "IND"]
[SourceTitle "playchess.com"]
[Source "ChessBase"]
[SourceQuality "1"]
[TimeControl "5400+30"]

1. e4 {[%emt 0:00:03]} c5 {[%emt 0:00:43]} 2. Nf3 {[%emt 0:00:08]} d6 {[%emt 0:00:04]} 3. d4 {[%emt 0:00:12]} cxd4 {[%emt 0:00:04]} 4. Nxd4 {[%emt 0:00:06]} Nf6 {[%emt 0:00:03]} 5. Nc3 {[%emt 0:00:08]} a6 {[%emt 0:00:03]} 6. Be3 {[%emt 0:00:45]} e5 {[%emt 0:00:08]} 7. Nb3 {[%emt 0:00:08]} Be6 {[%emt 0:00:42]} 8. f3 {[%emt 0:00:14]} h5 {[%emt 0:03:59]} 9. Qd2 {[%emt 0:01:08]} Nbd7 {[%emt 0:00:07]} 10. O-O-O {[%emt 0:01:56]} Rc8 {[%emt 0:00:18]} 11. Kb1 {[%emt 0:02:52]} Be7 {[%emt 0:00:14]} 12. Nd5 {[%emt 0:12:54]} Nxd5 {[%emt 0:02:02]} 13. exd5 {[%emt 0:00:26]} Bf5 {[%emt 0:00:02]} 14. Bd3 {[%emt 0:01:45]} Bxd3 {[%emt 0:00:08]} 15. Qxd3 {[%emt 0:00:36]} Bg5 {[%emt 0:00:06]} 16. Bf2 {[%emt 0:06:55]} h4 {[%emt 0:00:23]} 17. Rhe1 {[%emt 0:05:56]} O-O {[%emt 0:05:05]} 18. g3 {[%emt 0:08:36]} f5 {[%emt 0:00:25]} 19. gxh4 {[%emt 0:10:30]} Bxh4 {[%emt 0:01:33]} 20. Qf1 {[%emt 0:03:09]} Qg5 {[%emt 0:07:22]} 21. Bxh4 {[%emt 0:05:02]} Qxh4 {[%emt 0:00:37]} 22. Qg2 {[%emt 0:00:41]} Rf6 {[%emt 0:06:26]} 23. Rg1 {[%emt 0:03:35]} Qh7 {[%emt 0:02:36]} 24. Qd2 {[%emt 0:04:21]} f4 {[%emt 0:01:37]} 25. Qg2 {[%emt 0:06:29]} Rh6 {[%emt 0:02:09]} 26. Rd2 {[%emt 0:04:05]} Nb6 {[%emt 0:06:17]} 27. Qg5 {[%emt 0:08:40]} Kf8 {[%emt 0:05:50]} 28. Rdg2 {[%emt 0:10:29]} Nxd5 {[%emt 0:00:54]} 29. Qxg7+ {[%emt 0:00:31]} Qxg7 {[%emt 0:00:03]} 30. Rxg7 {[%emt 0:00:08]} Ne7 {[%emt 0:01:25]} 31. R7g2 {[%emt 0:00:14]} Kf7 {[%emt 0:00:40]} 32. Nd2 {[%emt 0:00:54]} Rch8 {[%emt 0:06:26]} 33. Ne4 {[%emt 0:01:43]} Nf5 {[%emt 0:05:27]} 34. h3 {[%emt 0:01:31]} d5 {[%emt 0:00:46]} 35. Rg5 {[%emt 0:00:37]} Rh5 {[%emt 0:01:27]} 36. Nf2 {[%emt 0:00:31]} Rxg5 {[%emt 0:00:51]} 37. Rxg5 {[%emt 0:00:08]} Kf6 {[%emt 0:00:05]} 38. Rg1 {[%emt 0:00:22]} Nd4 {[%emt 0:00:12]} 39. Rd1 {[%emt 0:00:58]} Nxf3 {[%emt 0:06:44]} 40. Rxd5 {[%emt 0:00:25]} Ke6 {[%emt 0:00:08]} 41. Rd3 {[%emt 0:00:32]} Ng5 {[%emt 0:00:01]} 42. Rd1 {[%emt 0:00:33]} e4 {[%emt 0:00:28]} 43. Rh1 {[%emt 0:00:32]} e3 {[%emt 0:00:27]} 44. Nd3 {[%emt 0:00:08]} Rh4 {[%emt 0:00:42]} 45. Re1 {[%emt 0:00:50]} Kf5 {[%emt 0:00:19]} 46. Kc1 {[%emt 0:00:31]} Rxh3 {[%emt 0:00:11]} 47. Kd1 {[%emt 0:00:28]} f3 {[%emt 0:01:28]} 48. Rxe3 {[%emt 0:00:32]} f2 {[%emt 0:00:01]} 49. Re5+ {[%emt 0:00:28]} Kf6 {[%emt 0:00:12]} 50. Nxf2 {[%emt 0:00:23]} Kxe5 {[%emt 0:00:07]} 51. Nxh3 {[%emt 0:00:05]} Nxh3 {[%emt 0:00:03]} 52. Kd2 {[%emt 0:00:34]} Kd4 {[%emt 0:00:07]} 53. c3+ {[%emt 0:00:17]} Ke4 {[%emt 0:00:02]} 54. Kc2 {[%emt 0:00:29]} Nf4 {[%emt 0:00:15]} 55. b4 {[%emt 0:00:36]} b5 {[%emt 0:00:20]} 56. Kb3 {[%emt 0:00:58]} Kd3 {[%emt 0:00:07]} 57. a4 {[%emt 0:00:26]} Nd5 {[%emt 0:00:11]} 0-1

[Event "43rd Indian-chT 2023-24"]
[Site "Dharamsala"]
[Date "2024.04.01"]
[Round "5.7"]
[White "Swapnil, S. Dhopade"]
[Black "Prakhar Tripathi"]
[Result "1-0"]
[ECO "E12"]
[WhiteElo "2454"]
[BlackElo "1599"]
[Annotator "TA"]
[PlyCount "55"]
[EventDate "2024.03.28"]
[EventType "team-tourn"]
[EventCountry "IND"]
[SourceTitle "playchess.com"]
[Source "ChessBase"]
[SourceQuality "1"]
[TimeControl "5400+30"]

{[%evp 14,55,45,27,70,68,75,83,120,120,146,116,135,133,143,142,141,151,199,206,188,195,241,171,284,281,264,251,516,520,700,670,657,470,998,1010,29989,29990,29994,29995,29995,29996,29998,29999]} 1. d4 {[%emt 0:00:02]} Nf6 {[%emt 0:00:22]} 2. c4 {[%emt 0:00:06]} e6 {[%emt 0:00:03]} 3. Nf3 {[%emt 0:00:40]} b6 {[%emt 0:00:12]} 4. a3 {[%emt 0:04:03]} Bb7 {[%emt 0:00:51]} 5. Nc3 {[%emt 0:00:06]} Be7 {[%emt 0:01:18]} 6. d5 {[%emt 0:00:48]} O-O {[%emt 0:03:06]} 7. e4 {[%emt 0:00:54]} d6 {[%emt 0:02:42]} 8. Be2 {[%emt 0:01:44]} a5 {[%emt 0:05:30]} 9. Nd4 {[%emt 0:05:16]} e5 {[%emt 0:03:46]} 10. Nf5 {[%emt 0:01:59]} Ne8 {[%emt 0:06:35] White is better.} 11. h4 {[%emt 0:02:03] White has more active pieces. Black is weak on the light squares} Bc8 {[%emt 0:05:41]} 12. Qd3 {[%emt 0:08:04]} Bxf5 {[%emt 0:09:10]} 13. exf5 {[%emt 0:00:06]} Na6 {[%emt 0:00:54]} 14. Qh3 {[%emt 0:03:08]} Nc5 {[%emt 0:05:07]} 15. Be3 {[%emt 0:03:47]} Nf6 {[%emt 0:07:24]} (15... g6 $16 16. O-O-O Bf6) 16. g4 $18 {[%emt 0:01:48]} Nfd7 {[%emt 0:04:47]} 17. g5 {[%emt 0:06:25]} f6 {[%emt 0:06:44]} (17... Nb3 $142) 18. O-O-O {[%emt 0:03:09]} Kh8 {[%emt 0:11:16]} (18... Nb3+ $142 19. Kb1 Ndc5) 19. Rdg1 {[%emt 0:03:05][%cal Bd1g1,Bg1g3,Bg3g6][%mdl 32] g6 is the strong threat.} Rg8 {[%emt 0:04:20]} 20. Rg3 {[%emt 0:10:45]} Nf8 $2 {[%emt 0:02:18]} (20... e4 {might work better.} 21. Kb1 Re8) 21. g6 {[%emt 0:04:00]} Ncd7 {[%emt 0:13:53]} 22. gxh7 {[%emt 0:02:36]} Nxh7 {[%emt 0:00:27]} 23. Rg6 {[%emt 0:00:04] Hoping for h5.} Bf8 {[%emt 0:01:31]} (23... Ndf8 $142 24. Rgg1 Qe8) 24. Ne4 {[%emt 0:06:19][%cal Oe4g5] Intending Ng5! and mate.} Rc8 {[%emt 0:00:50] [#]} 25. Ng5 $1 {[%emt 0:01:25][%cal Rg5f7][%mdl 512] White mates.} Qe7 {[%emt 0:01:21] [#]} (25... Qe8 26. Qg4) 26. Qg4 $1 {[%emt 0:00:37]} fxg5 {[%emt 0:00:26]} 27. hxg5 {[%emt 0:00:05]} c6 {[%emt 0:00:31] [#]} 28. Rxh7+ $1 {[%emt 0:00:11][%mdl 512] Black did not feel at home in the position after the opening.   Weighted Error Value: White=0.17 (very precise) /Black=0.80.  Mistake:       	---       	Black=4      Inaccurate:     	---       	Black=3      OK:         	White=10    	Black=3      Best:        	White=1     	---} 1-0

[Event "43rd Indian-chT 2023-24"]
[Site "Dharamsala"]
[Date "2024.04.01"]
[Round "5.8"]
[White "Maaz Iqubal"]
[Black "Gusain, Himal"]
[Result "0-1"]
[ECO "B46"]
[WhiteElo "1729"]
[BlackElo "2484"]
[Annotator "TA"]
[PlyCount "92"]
[EventDate "2024.03.28"]
[EventType "team-tourn"]
[EventCountry "IND"]
[SourceTitle "playchess.com"]
[Source "ChessBase"]
[SourceQuality "1"]
[TimeControl "5400+30"]

{[%evp 12,92,22,14,35,13,28,23,14,-2,0,0,0,-2,-1,-43,-42,-37,-41,-79,-72,-73,-82,-86,-84,-108,-72,-106,-83,-114,-120,-126,-124,-113,-128,-115,-100,-108,-96,-115,-107,-110,-90,-135,-139,-128,-133,-117,-130,-209,-168,-181,0,-206,-218,-199,-131,-138,-133,-127,-144,-129,-113,-270,-161,-174,-166,-221,-157,-262,-255,-232,-204,-203,-207,-220,-201,-374,-369,-435,-367,-29998,-29999]} 1. e4 {[%emt 0:00:04]} c5 {[%emt 0:00:08]} 2. Nf3 {[%emt 0:00:05][%cal Bg1f3,Bf3d4,Bd4f5][%mdl 32]} e6 {[%emt 0:00:04][%cal Be7e6,Be6e5][%mdl 32]} 3. d4 {[%emt 0:00:09]} cxd4 {[%emt 0:00:03]} 4. Nxd4 {[%emt 0:00:08]} Nc6 {[%emt 0:00:03]} 5. Nc3 {[%emt 0:00:11]} a6 {[%emt 0:00:15]} 6. Be3 {[%emt 0:11:26]} Nf6 {[%emt 0:00:19]} 7. Qd2 {[%emt 0:01:39]} e5 {[%emt 0:01:05]} 8. Nf5 {[%emt 0:08:52] next Nd6+ is good for White.} d5 $1 {[%emt 0:00:36]} 9. exd5 {[%emt 0:02:26]} (9. Nxd5 $2 {is the wrong capture.} Nxe4 10. Qd3 Bxf5 $19) 9... Nb4 {[%emt 0:00:19] White has an edge.} 10. Ng3 {[%emt 0:01:56]} (10. g4 {seems wilder.} Nbxd5 11. Bg2 Nxe3 12. Qxd8+ Kxd8 13. Nxe3 Nxg4 14. O-O-O+) 10... Nfxd5 {[%emt 0:00:09]} 11. Nxd5 {[%emt 0:01:21]} (11. O-O-O $5 Be6 $8 12. Nge4 $11) 11... Qxd5 {[%emt 0:00:45]} 12. Qxd5 {[%emt 0:04:22]} Nxd5 {[%emt 0:00:08]} 13. O-O-O {[%emt 0:01:58]} Nxe3 {[%emt 0:00:28]} 14. fxe3 {[%emt 0:00:10]} Bc5 {[%emt 0:01:45]} 15. e4 {[%emt 0:01:17]} Be6 {[%emt 0:00:12]} 16. Kb1 {[%emt 0:02:07]} g6 {[%emt 0:02:39]} 17. Bd3 {[%emt 0:02:49]} h5 {[%emt 0:02:53] White is weak on the dark squares} 18. h4 {[%emt 0:06:28]} O-O-O {[%emt 0:04:02]} 19. Rdf1 {[%emt 0:03:59]} Rhf8 {[%emt 0:05:12] Black is more active.} 20. Rf6 {[%emt 0:09:12]} Rd6 {[%emt 0:04:16][%cal Oe6a2] aiming for ...Bxa2+!} 21. Rhf1 {[%emt 0:03:03]} Rb6 {[%emt 0:00:45]} 22. R6f3 {[%emt 0:02:19]} Be7 {[%emt 0:01:12]} 23. Rh1 {[%emt 0:00:32]} Ba3 {[%emt 0:03:02]} 24. b3 {[%emt 0:01:59]} Rc6 $36 {[%emt 0:09:20][%mdl 2048] Black has strong initiative.} 25. Rhf1 {[%emt 0:02:57]} Be7 {[%emt 0:00:19]} 26. Rh1 {[%emt 0:00:08]} b5 {[%emt 0:02:29]} 27. Kb2 {[%emt 0:03:54]} Bg4 {[%emt 0:00:55]} 28. Rff1 {[%emt 0:01:11]} Bc5 {[%emt 0:01:38]} 29. Kb1 {[%emt 0:01:13]} Rd6 {[%emt 0:04:59]} 30. Kb2 {[%emt 0:05:18]} (30. Ne2 $17 {was necessary.}) 30... Bd4+ {[%emt 0:02:19] This pair of bishops is nice.} 31. Kb1 {[%emt 0:00:22]} Bc5 {[%emt 0:01:44]} 32. Kb2 {[%emt 0:00:45]} Kd7 {[%emt 0:00:25]} 33. Be2 {[%emt 0:16:40]} Be6 {[%emt 0:00:11]} (33... Bxe2 $19 34. Nxe2 Ke7) 34. Rd1 $17 {[%emt 0:01:42]} Bf2 {[%emt 0:00:22]} 35. Rxd6+ {[%emt 0:00:31]} Kxd6 {[%emt 0:00:07]} 36. Nf1 {[%emt 0:00:39]} Kc5 {[%emt 0:01:02]} 37. g3 $2 {[%emt 0:00:46] This move loses the game for White.} (37. c3 $17) 37... Rd8 {[%emt 0:01:29]} (37... f5 $142 38. exf5 Bd5 (38... Bxf5 $2 39. Rh2 $19) (38... Rxf5 $2 39. Nd2 $19) (38... gxf5 39. Rh2 $15)) 38. Rh2 $19 {[%emt 0:00:42] [#]} Be1 {[%emt 0:00:08]} 39. Bd3 {[%emt 0:01:34]} (39. Bf3 $142) 39... b4 {[%emt 0:01:29]} 40. Re2 {[%emt 0:01:02]} (40. Kc1 $17 {keeps fighting.}) 40... Bc3+ {[%emt 0:00:05]} 41. Kc1 {[%emt 0:00:17]} a5 {[%emt 0:03:22]} 42. Ne3 {[%emt 0:01:33]} Bd4 {[%emt 0:00:37]} ({Don't play} 42... Kd4 43. Ba6 $19) 43. Nc4 {[%emt 0:01:00]} a4 {[%emt 0:00:11]} 44. Kd2 $2 {[%emt 0:00:31]} (44. Rg2) 44... axb3 {[%emt 0:01:27]} 45. axb3 {[%emt 0:00:13]} Ra8 {[%emt 0:00:23]} 46. Ne3 $2 {[%emt 0:01:15] [#]} (46. Rg2 $19) 46... Bc3+ {[%emt 0:00:08] Weighted Error Value: White=0.40/Black=0.20 (precise) .  Mistake:       	White=6     	Black=2      Inaccurate:     	White=5     	Black=1      OK:         	White=13    	Black=14     Best:        	White=2     	Black=3      Strong:       	---       	Black=1} 0-1

[Event "43rd Indian-chT 2023-24"]
[Site "Dharamsala"]
[Date "2024.04.01"]
[Round "6.1"]
[White "Borkhetariya Devarsh M"]
[Black "Shyaamnikhil P"]
[Result "0-1"]
[ECO "B28"]
[WhiteElo "1840"]
[BlackElo "2405"]
[Annotator "RC"]
[PlyCount "134"]
[EventDate "2024.03.28"]
[EventType "team-tourn"]
[EventCountry "IND"]
[SourceTitle "playchess.com"]
[Source "ChessBase"]
[SourceQuality "1"]
[TimeControl "5400+30"]

1. e4 {[%emt 0:00:16]} c5 {[%emt 0:00:17]} 2. Nf3 {[%emt 0:00:09]} a6 {[%emt 0:01:17]} 3. d4 {[%emt 0:00:23]} cxd4 {[%emt 0:00:06]} 4. Nxd4 {[%emt 0:00:03]} Nf6 {[%emt 0:00:06]} 5. Nc3 {[%emt 0:00:04]} e5 {[%emt 0:00:05]} 6. Nb3 {[%emt 0:06:16]} Bb4 {[%emt 0:01:50]} 7. Bg5 {[%emt 0:09:33]} h6 {[%emt 0:10:56]} 8. Bxf6 {[%emt 0:01:22]} Qxf6 {[%emt 0:02:10]} 9. Qd3 {[%emt 0:03:44]} O-O {[%emt 0:08:26]} 10. Be2 {[%emt 0:03:13]} Nc6 {[%emt 0:11:17]} 11. O-O {[%emt 0:01:10]} Bxc3 {[%emt 0:02:38]} 12. Qxc3 {[%emt 0:00:08]} d6 {[%emt 0:00:12]} 13. Rad1 {[%emt 0:04:19]} Qe7 {[%emt 0:01:05]} 14. Qd2 {[%emt 0:09:40]} Rd8 {[%emt 0:00:22]} 15. Bc4 {[%emt 0:00:56]} Bg4 {[%emt 0:01:40]} 16. f3 {[%emt 0:01:58]} Be6 {[%emt 0:01:15]} 17. Bd5 {[%emt 0:00:09]} a5 {[%emt 0:00:39]} 18. c3 {[%emt 0:13:08]} Qc7 {[%emt 0:01:33]} 19. f4 {[%emt 0:09:39]} a4 {[%emt 0:05:42]} 20. Nc1 {[%emt 0:01:15]} exf4 {[%emt 0:01:16]} 21. Rxf4 {[%emt 0:04:02]} Ne5 {[%emt 0:00:24]} 22. Nd3 {[%emt 0:04:41]} Ng6 {[%emt 0:08:06]} 23. Rf2 {[%emt 0:02:01]} Bxd5 {[%emt 0:01:43]} 24. exd5 {[%emt 0:00:02]} Qc4 {[%emt 0:02:37]} 25. Rdf1 {[%emt 0:05:15]} Qxd5 {[%emt 0:10:08]} 26. Qe3 {[%emt 0:03:21]} Re8 {[%emt 0:04:25]} 27. Qg3 {[%emt 0:01:39]} Re7 {[%emt 0:03:02]} 28. h4 {[%emt 0:07:23]} Rae8 {[%emt 0:01:48]} 29. Rf5 {[%emt 0:01:21]} Qc4 {[%emt 0:07:21]} 30. Qxd6 {[%emt 0:03:02]} Qxh4 {[%emt 0:05:22]} 31. Qd5 {[%emt 0:00:47]} Rf8 {[%emt 0:00:23]} 32. Nf4 {[%emt 0:02:09]} Qg4 {[%emt 0:01:12]} 33. Nxg6 {[%emt 0:02:26]} Qxg6 {[%emt 0:00:06]} 34. Qb5 {[%emt 0:01:04]} a3 {[%emt 0:00:39]} 35. b3 {[%emt 0:00:09]} Rc8 {[%emt 0:01:20]} 36. Qd5 {[%emt 0:00:46]} Qb6+ {[%emt 0:00:44]} 37. Kh1 {[%emt 0:00:40]} Qc7 {[%emt 0:02:24]} 38. c4 {[%emt 0:00:44]} Rd8 {[%emt 0:00:06]} 39. Qa5 {[%emt 0:00:24]} Qxa5 {[%emt 0:00:56]} 40. Rxa5 {[%emt 0:00:01]} Rd2 {[%emt 0:00:10]} 41. Rxa3 {[%emt 0:00:14]} Ree2 {[%emt 0:00:04]} 42. Ra8+ {[%emt 0:00:59]} Kh7 {[%emt 0:00:05]} 43. Rxf7 {[%emt 0:00:02]} Rxg2 {[%emt 0:00:04]} 44. Ra7 {[%emt 0:00:20]} h5 {[%emt 0:01:48]} 45. Raxb7 {[%emt 0:00:44]} h4 {[%emt 0:00:35]} 46. Rf4 {[%emt 0:00:46]} Rh2+ {[%emt 0:00:18]} 47. Kg1 {[%emt 0:00:01]} Rdg2+ {[%emt 0:00:29]} 48. Kf1 {[%emt 0:00:01]} Rxa2 {[%emt 0:00:15]} 49. Kg1 {[%emt 0:00:18]} Rag2+ {[%emt 0:00:54]} 50. Kf1 {[%emt 0:00:01]} Rc2 {[%emt 0:00:28]} 51. Kg1 {[%emt 0:00:33]} Kh6 {[%emt 0:01:23]} 52. Rbf7 {[%emt 0:02:29]} Rcg2+ {[%emt 0:00:49]} 53. Kf1 {[%emt 0:00:00]} h3 {[%emt 0:00:44]} 54. Rf2 {[%emt 0:00:27]} Rh1+ {[%emt 0:00:09]} 55. Ke2 {[%emt 0:00:00]} Rb1 {[%emt 0:00:32]} 56. R7f3 {[%emt 0:01:00]} Rb2+ {[%emt 0:00:14]} 57. Ke3 {[%emt 0:01:06]} Rxb3+ {[%emt 0:02:54]} 58. Ke4 {[%emt 0:00:34]} h2 {[%emt 0:00:50]} 59. Rxb3 {[%emt 0:00:26]} h1=Q {[%emt 0:00:26]} 60. Rff3 {[%emt 0:00:18]} Rg4+ {[%emt 0:00:25]} 61. Ke5 {[%emt 0:00:22]} Qh2+ {[%emt 0:00:31]} 62. Kf5 {[%emt 0:00:15]} Qh5+ {[%emt 0:00:27]} 63. Ke6 {[%emt 0:00:04]} Qe8+ {[%emt 0:00:21]} 64. Kd5 {[%emt 0:00:12]} Qd7+ {[%emt 0:00:06]} 65. Kc5 {[%emt 0:00:25]} Qc7+ {[%emt 0:00:05]} 66. Kb4 {[%emt 0:00:32]} Qxc4+ {[%emt 0:00:06]} 67. Ka3 {[%emt 0:00:02]} Qc5+ {[%emt 0:00:10]} 0-1

[Event "43rd Indian-chT 2023-24"]
[Site "Dharamsala"]
[Date "2024.04.01"]
[Round "6.2"]
[White "Vignesh N R"]
[Black "Jval Saurin Patel"]
[Result "1-0"]
[ECO "C02"]
[WhiteElo "2525"]
[BlackElo "1934"]
[Annotator "TA"]
[PlyCount "91"]
[EventDate "2024.03.28"]
[EventType "team-tourn"]
[EventCountry "IND"]
[SourceTitle "playchess.com"]
[Source "ChessBase"]
[SourceQuality "1"]
[TimeControl "5400+30"]

{[%evp 18,91,-18,-30,-26,-31,-16,-15,-11,-29,-45,-36,-33,-50,-54,-39,-14,-8,-18,-24,-31,-77,-17,-29,-23,-21,-24,-20,-23,-960,1070,1029,1102,-10,-12,-44,0,0,0,0,0,0,0,0,8,8,8,0,6,0,263,263,263,263,263,263,263,261,254,254,708,274,1052,288,29980,29981,29982,29982,29983,29984,29984,29985,29985,29985,29985,29986]} 1. e4 {[%emt 0:00:19]} e6 {[%emt 0:00:20]} 2. d4 {[%emt 0:00:09]} d5 {[%emt 0:00:07]} 3. e5 {[%emt 0:00:45]} c5 {[%emt 0:00:10]} 4. c3 {[%emt 0:00:05]} Nc6 {[%emt 0:00:06]} 5. Nf3 {[%emt 0:00:07]} Qb6 {[%emt 0:00:06]} 6. Bd3 {[%emt 0:03:33]} cxd4 {[%emt 0:00:15]} 7. cxd4 {[%emt 0:03:18]} Bd7 {[%emt 0:00:10]} 8. Bc2 {[%emt 0:01:13]} Nb4 {[%emt 0:02:43]} 9. O-O {[%emt 0:01:16]} Nxc2 {[%emt 0:01:26]} 10. Qxc2 {[%emt 0:00:02]} Ne7 {[%emt 0:00:37][%cal Bg8e7,Be7c6,Bc6a5,Ba5c4][%mdl 32]} 11. Rd1 {[%emt 0:01:08]} Nc6 {[%emt 0:01:58]} 12. Nc3 {[%emt 0:00:28]} Be7 {[%emt 0:00:41] The position is equal.} 13. h4 {[%emt 0:02:21]} h6 {[%emt 0:03:07]} 14. Be3 {[%emt 0:03:40]} Rc8 {[%emt 0:01:40]} 15. Rac1 {[%emt 0:00:43]} Na5 {[%emt 0:01:38]} 16. Bf4 {[%emt 0:03:34]} O-O {[%emt 0:08:09]} 17. Qe2 {[%emt 0:01:51]} Qa6 {[%emt 0:01:58]} 18. Qxa6 {[%emt 0:06:38]} bxa6 {[%emt 0:00:02]} 19. Rd2 {[%emt 0:13:34]} (19. h5 $15) 19... Bb5 {[%emt 0:03:58]} (19... Rc6 $17) 20. Rdd1 $11 {[%emt 0:11:04]} Nc4 {[%emt 0:19:01]} 21. Nxb5 {[%emt 0:01:56]} axb5 {[%emt 0:00:03]} 22. b3 {[%emt 0:03:08]} Na5 {[%emt 0:02:59]} 23. Rc2 $2 {[%emt 0:03:01][%mdl 8192] [#]} Rc7 $4 {[%mdl 8192]} 24. Rxc7 $18 {[%emt 0:00:30]} Re8 {[%emt 0:00:03] [#]} 25. Rc8 $2 Rxc8 $11 {[%emt 0:01:00]} 26. Rc1 {[%emt 0:00:34] Inhibits Rc2.} Nc6 {[%emt 0:01:51]} 27. h5 {[%emt 0:01:12]} Kf8 {[%emt 0:00:32]} 28. Ne1 {[%emt 0:06:17]} Ke8 {[%emt 0:00:48]} 29. Be3 {[%emt 0:00:31]} Kd7 {[%emt 0:06:10]} 30. Nd3 {[%emt 0:00:06]} g6 {[%emt 0:07:07]} 31. hxg6 {[%emt 0:02:48]} fxg6 {[%emt 0:00:01]} 32. g3 {[%emt 0:04:01][%cal Og1g2]} g5 {[%emt 0:09:12]} 33. Kg2 {[%emt 0:02:50]} Nb4 $2 {[%emt 0:04:54][%mdl 8192]} (33... h5 $11 {and Black stays safe.}) 34. Rxc8 $18 {[%emt 0:01:18]} Kxc8 {[%emt 0:00:06]} 35. Nxb4 {[%emt 0:00:05]} Bxb4 {[%emt 0:00:06][%mdl 4096] Endgame. KB-KB} 36. Kf3 {[%emt 0:00:05] Kg4 is the strong threat.} Kd7 {[%emt 0:01:50]} 37. Kg4 {[%emt 0:00:06] And now Kh5 would win.} Ke8 {[%emt 0:00:08]} 38. Kh5 {[%emt 0:00:02][%cal Og3g4] Threatens to win with g4!} Bf8 $2 {[%emt 0:00:09]} (38... Kf7 39. Kxh6 g4) 39. Kg6 $2 {[%emt 0:00:31]} (39. f4 gxf4 40. Bxf4) 39... a5 $2 {[%emt 0:00:31]} (39... g4 40. Bxh6 Be7) 40. a4 $2 {[%emt 0:00:23]} (40. Kf6 Be7+ 41. Kxe6) 40... b4 $2 {[%emt 0:00:24]} (40... bxa4 $18 41. bxa4 g4 42. Bxh6 Be7) 41. g4 {[%emt 0:00:50] White mates.} Ke7 {[%emt 0:01:06]} 42. f4 {[%emt 0:00:09]} gxf4 {[%emt 0:01:29]} 43. Bxf4 {[%emt 0:00:13]} Ke8 {[%emt 0:00:07]} 44. Bxh6 {[%emt 0:00:05]} Be7 {[%emt 0:00:08]} 45. Bg5 {[%emt 0:00:05]} Bf8 {[%emt 0:00:06]} 46. Bf6 {[%emt 0:00:04] Never resign too early!   Weighted Error Value: White=0.72/Black=0.41.  Loses game:     	White=1     	Black=1      Missed win:     	---       	Black=1      Mistake:       	White=2     	Black=4      Inaccurate:     	---       	Black=1      OK:         	White=14    	Black=7      Best:        	White=4     	---} 1-0